Cogmind - Beta 14 @@@ ROGUE MODE // 2024.09.29 @ 13:42:56 Player: Cmdr.Laserstrahl Result: Destroyed by X-57 Shotgunner with High-powered Shotgun Performance ------------- Evolutions (2) 1000 Regions Visited (3) 600 Robots Destroyed (54) 270 Value Destroyed (1128) 1128 Prototype IDs (0) 0 Alien Tech Used (0) 0 Bonus (24) 24 TOTAL SCORE: 3022 Bonus ------- High Alert Combat Kills 24 Cogmind --------- Core Integrity 0/550 Matter 217/300 Energy 97/100 System Corruption 0% Temperature Cool (0) Movement Rolling (90) Location -8/Materials Parts ------- > --- POWER (1) -------- (None) > --- PROPULSION (3) --- Wheel Compact Wheel Armored Wheel > --- UTILITY (5) ------ Large Storage Unit Machine Analyzer Improved Signal Interpreter Improved Targeting Computer Hardened Medium Armor Plating > --- WEAPON (2) ------- Improved Light Cannon Katana > --- INVENTORY (15) --- Advanced Heat Sink Disposable Heat Sink Large Battery (200) Medium Matter Pod (100) Improved Targeting Computer Improved Targeting Computer ECM Suite Hardened Medium Armor Plating Heavy Particle Cannon Heavy Assault Rifle Minigun Slug Cannon Grenade Launcher Missile Launcher Mining Laser Peak State ------------ > --- POWER ------------ (None) > --- PROPULSION ------- Wheel Compact Wheel Armored Wheel > --- UTILITY ---------- Large Storage Unit Machine Analyzer Improved Signal Interpreter Improved Targeting Computer Hardened Medium Armor Plating > --- WEAPON ----------- Improved Light Cannon Katana > --- INVENTORY -------- Advanced Heat Sink Disposable Heat Sink Large Battery Medium Matter Pod Improved Targeting Computer Improved Targeting Computer ECM Suite Hardened Medium Armor Plating Heavy Particle Cannon Heavy Assault Rifle Minigun Slug Cannon Grenade Launcher Missile Launcher Mining Laser [Rating: 24] Favorites ----------- Power Light Ion Engine Engine Light Ion Engine Propulsion Wheel Wheel Wheel Utility Large Storage Unit Device Seismic Detector Storage Large Storage Unit Processor Improved Targeting Computer Protection Hardened Medium Armor Plating Weapon Medium Laser Energy Gun Medium Laser Ballistic Gun Assault Rifle Ballistic Cannon Improved Light Cannon Launcher Grenade Launcher Slashing Weapon Katana Build | -11 -10 -10 -8 ------- Run | Yrd Mat Sub Mat Slots Evolved 4 | . . . 4 Power . | . . . . Propulsion 1 | . . . 1 Utility 3 | . . . 3 Weapon . | . . . . Parts Attached 49 | 7 12 3 27 Power 5 | 1 2 1 1 Engine 5 | 1 2 1 1 Core . | . . . . Reactor . | . . . . Propulsion 14 | 2 2 . 10 Treads . | . . . . Leg . | . . . . Wheel 14 | 2 2 . 10 Hover . | . . . . Flight . | . . . . Utility 16 | 2 4 . 10 Device 6 | 1 2 . 3 Storage 2 | 1 1 . . Processor 5 | . 1 . 4 Hackware . | . . . . Protection 3 | . . . 3 Artifact . | . . . . Weapon 14 | 2 4 2 6 Energy Gun 2 | 2 . . . Energy Cannon . | . . . . Ballistic Gun 5 | . 2 1 2 Ballistic Cannon 4 | . 1 1 2 Launcher 2 | . 1 . 1 Special Weapon . | . . . . Impact Weapon . | . . . . Slashing Weapon 1 | . . . 1 Piercing Weapon . | . . . . Special Melee Weapon . | . . . . Unidentified Prototypes . | . . . . Parts Lost 10 | . 3 . 7 Power 2 | . 1 . 1 Propulsion 5 | . 2 . 3 Utility 2 | . . . 2 Weapon 1 | . . . 1 Highest Loss Streak 2 | . 2 . 2 To Critical Strikes . | . . . . Average Slot Usage (%) 94 | . 97 100 89 Engine 9 | . 13 14 5 Wheel 25 | . 26 28 23 Device 3 | . 8 . 1 Storage 11 | . 14 14 9 Processor 17 | . 5 14 26 Protection 2 | . . . 5 Energy Gun 8 | . 15 14 3 Ballistic Gun 5 | . 2 12 4 Ballistic Cannon 4 | . 2 1 5 Launcher 2 | . 7 . . Slashing Weapon 2 | . . . 4 Peak Build Rating 24 | 7 9 13 24 Average Rating 14 | 4 8 9 19 On Entrance 6 | . 7 9 10 Naked Turns . | . . . . Heaviest Build 39 | 15 29 34 39 Greatest Support 48 | 26 26 20 48 Greatest Overweight (x) 2 | . 2 1 2 Average Overweight (x) . | . . 1 . Largest Inventory Capacity 15 | 8 15 15 15 Average Capacity 14 | 5 14 15 15 Most Carried 15 | 5 15 15 15 Average Carried 13 | 4 12 15 14 Final Capacity 15 | 8 15 15 15 Final Carried 15 | 4 15 15 15 Class Distribution -------------------- 100% | Mutant Dominant Class ---------------- Mutant | -10/Materials Mutant | -10/Subcaves Mutant | -8/Materials Resources | -11 -10 -10 -8 ----------- Run | Yrd Mat Sub Mat Matter Collected 1233 | 166 372 96 599 Remotely . | . . . . Salvage Created 1708 | 91 435 . 1182 Parts 92 | 5 43 . 44 Haulers Intercepted 1 | . . . 1 Recyclers Shooed 9 | . 2 . 7 Parts Field Recycled . | . . . . Retrieved Matter . | . . . . Parts Self-Destructed 4 | . . 4 . Prevented . | . . . . Kills | -11 -10 -10 -8 ------- Run | Yrd Mat Sub Mat Combat Hostiles Destroyed 31 | . 12 . 19 Melee 7 | . . . 7 Guns 14 | . 6 . 8 Cannons 3 | . 2 . 1 AOE 7 | . 4 . 3 Classes Destroyed 12 | 2 7 . 3 Worker 1 | . 1 . . Builder 4 | . 3 . 1 Tunneler 3 | 1 1 . 1 Hauler 1 | . . . 1 Recycler 8 | 1 1 . 6 Mechanic 2 | . 1 . 1 Operator 2 | . 2 . . Watcher 2 | . 2 . . Swarmer 13 | . 6 . 7 Grunt 15 | . 6 . 9 Sentry 2 | . . . 2 Hunter 1 | . . . 1 Best Kill Streak 5 | 1 4 . 5 Combat Bots Only 4 | . 3 . 4 Max Kills in Single Turn 3 | 1 3 . 2 Gunslinging . | . . . . Exploded 2 | . 2 . 2 Melee 1 | . . . 1 Uniques/NPCs Destroyed . | . . . . Combat | -11 -10 -10 -8 -------- Run | Yrd Mat Sub Mat Hostile Shots Fired 229 | . 53 5 171 Missed 59 | . 14 1 44 Damage Taken 2136 | . 434 89 1613 Core 662 | . 99 . 563 Absorbed by Shields . | . . . . Regen/Repaired (Parts) 29 | . 29 . . Core Remaining (%) 80 | 100 . 60 . Volleys Fired 148 | 5 57 1 85 Largest 2 | 2 2 2 2 Hottest 100 | 100 100 98 75 Shots Fired 261 | 10 103 2 146 Gun 186 | 10 75 1 100 Cannon 54 | . 12 1 41 Launcher 21 | . 16 . 5 Special . | . . . . Kinetic 131 | . 28 1 102 Thermal 109 | 10 59 1 39 Explosive 21 | . 16 . 5 Electromagnetic . | . . . . Robot Hit Streak 20 | 4 5 1 20 Robot Miss Streak 6 | 2 6 2 5 Penetration Max . | . . . . Secondary Targets 2 | . 1 . 1 Max Gunslinging Chain 1 | . 1 . 1 Shots Hit Robots 180 | 6 50 1 123 Core Hits 87 | 3 34 . 50 Critical Kills . | . . . . Critical Parts Destroyed . | . . . . Critical Strikes 9 | 1 3 . 5 Burn 5 | 1 3 . 1 Blast 1 | . . . 1 Sever 3 | . . . 3 Melee Attacks 49 | . . . 49 Impact . | . . . . Slashing 49 | . . . 49 Piercing . | . . . . Sneak Attacks 5 | . . . 5 Combat Hostiles . | . . . . Follow-up Attacks . | . . . . Damage Inflicted 4147 | 74 1347 19 2707 Guns 1500 | 74 463 . 963 Cannons 571 | . 171 19 381 Explosions 1115 | . 713 . 402 Melee 961 | . . . 961 Ramming . | . . . . Kinetic 1206 | . 255 19 932 Thermal 865 | 74 379 . 412 Explosive 1115 | . 713 . 402 Electromagnetic . | . . . . Impact . | . . . . Slashing 961 | . . . 961 Piercing . | . . . . Highest Corruption . | . . . . Average Corruption . | . . . . Corruption Purged . | . . . . Corruption Blocked . | . . . . Overload Shots . | . . . . Overflow Damage 227 | . 40 . 187 Projectiles 31 | . . . 31 Explosions 44 | . 40 . 4 Melee 152 | . . . 152 Knockbacks 7 | . 2 . 5 Impact . | . . . . Kinetic 7 | . 2 . 5 Secondary . | . . . . Self-Inflicted Damage 61 | . 61 . . Shots 2 | . 2 . . Rammed . | . . . . Targets Rammed . | . . . . Kicked . | . . . . Crushed . | . . . . Highest Temperature 312 | 117 312 . 170 Average Temperature 63 | 54 70 . 51 Received Heat Transfer 582 | . 105 18 459 Effects 2 | . 2 . . Energy Bleed 1 | . 1 . . Interference 1 | . 1 . . Siege Activations . | . . . . Robots Corrupted . | . . . . Combat Hostiles . | . . . . Parts Fried . | . . . . Impact Corruptions . | . . . . Robots Melted . | . . . . Combat Hostiles . | . . . . Parts Melted 3 | . 1 . 2 Heat Transferred 2923 | 296 1332 . 1295 Parts Sabotaged . | . . . . Parts Stolen . | . . . . Parts Stripped . | . . . . Power Chain Reactions . | . . . . Alert | -11 -10 -10 -8 ------- Run | Yrd Mat Sub Mat Peak Influence 453 | 10 347 . 453 Initial 74 | . 6 . 74 Average 223 | 4 189 . 263 Maximum Alert Level 2 | . 1 . 2 Low Security (%) 41 | 100 53 . 28 Level 1 52 | . 46 . 59 Level 2 6 | . . . 11 Level 3 . | . . . . Level 4 . | . . . . Level 5 . | . . . . High Security . | . . . . Max Security . | . . . . Squads Dispatched 4 | . 1 . 3 Investigation 1 | . . . 1 Extermination . | . . . . Reinforcement 3 | . 1 . 2 Assault . | . . . . Garrison . | . . . . Intercept . | . . . . Searches Triggered . | . . . . Construction Impeded . | . . . . Haulers Reinforced . | . . . . Active Scanning Responses . | . . . . Cargo Convoy Interrupts . | . . . . Stealth | -11 -10 -10 -8 --------- Run | Yrd Mat Sub Mat Distress Signals 3 | . 2 . 1 Communications Jammed . | . . . . Distress Signals . | . . . . Times Spotted 57 | . 18 2 37 Peak Tracking Total 6 | . 4 2 6 Tactical Retreats 4 | . . . 4 Traps | -11 -10 -10 -8 ------- Run | Yrd Mat Sub Mat Traps Triggered . | . . . . Indirectly . | . . . . Trap Hack Attempts . | . . . . Triggered . | . . . . Disarmed . | . . . . Reprogrammed . | . . . . Reused . | . . . . Traps Extracted . | . . . . Installed . | . . . . Triggered . | . . . . Machines | -11 -10 -10 -8 ---------- Run | Yrd Mat Sub Mat Machines Disabled 2 | . 2 . . Max in Single Turn 1 | . 1 . . Garrison Access 1 | . . . 1 Machines Repaired . | . . . . Machines Dismantled . | . . . . Machines Sabotaged . | . . . . Overloaded Fab Kills . | . . . . Hacking | -11 -10 -10 -8 --------- Run | Yrd Mat Sub Mat Machines Accessed 12 | . 7 . 5 Terminals 7 | . 5 . 2 Fabricators . | . . . . Repair Stations 1 | . 1 . . Recycling Units 2 | . 1 . 1 Scanalyzers 1 | . . . 1 Garrison Access 1 | . . . 1 Total Hacks 34 | . 17 . 17 Successful 26 | . 11 . 15 Failed 8 | . 6 . 2 Catastrophic 1 | . 1 . . Database Lockouts . | . . . . Manual 17 | . 14 . 3 Terminals 18 | . 14 . 4 Fabricators . | . . . . Repair Stations 2 | . 2 . . Recycling Units 3 | . 1 . 2 Scanalyzers 10 | . . . 10 Garrison Access 1 | . . . 1 Terminal Hacks 1 | . 1 . . Terminal Index 1 | . 1 . . Fabricator Hacks . | . . . . Repair Station Hacks 2 | . 2 . . Scan Component 1 | . 1 . . Repair 1 | . 1 . . Recycling Unit Hacks 3 | . 1 . 2 Report Inventory 2 | . 1 . 1 Retrieve Components 1 | . . . 1 Scanalyzer 10 | . . . 10 Insert Component 5 | . . . 5 Analyze 5 | . . . 5 Garrison Access Hacks 1 | . . . 1 Seal Access 1 | . . . 1 Unauthorized Hacks 9 | . 7 . 2 Terminals 9 | . 7 . 2 Track 2 | . 2 . . Botnet 7 | . 5 . 2 Fabricators . | . . . . Repair Stations . | . . . . Recycling Units . | . . . . Scanalyzers . | . . . . Garrison Access . | . . . . Data Cores Recovered 1 | . 1 . . Used 1 | . 1 . . Hacking Detections 9 | . 5 . 4 Full Trace Events 1 | . . . 1 Feedback Events . | . . . . Feedback Blocked . | . . . . Robot Schematics Acquired . | . . . . Robots Built . | . . . . Authchips . | . . . . Time . | . . . . Total Robot Build Rating . | . . . . Part Schematics Acquired 5 | . . . 5 Parts Built . | . . . . Authchips . | . . . . Time . | . . . . Total Part Build Rating . | . . . . Parts Repaired 1 | . 1 . . Time 26 | . 26 . . Parts Recycled . | . . . . Recycled Matter . | . . . . Retrieved Matter . | . . . . Retrieved Components 2 | . . . 2 Parts Scanalyzed 5 | . . . 5 Part Schematics Acquired 5 | . . . 5 Parts Damaged 1 | . . . 1 Bothacking | -11 -10 -10 -8 ------------ Run | Yrd Mat Sub Mat Used RIF Installer . | . . . . Robots Hacked . | . . . . Non-combat . | . . . . Combat . | . . . . Robot Hacks Applied . | . . . . Relay Couplers Released . | . . . . Fabnet Peak Effective % . | . . . . Robots Rewired . | . . . . Allies Hacked . | . . . . Hacks Repelled . | . . . . Allies | -11 -10 -10 -8 -------- Run | Yrd Mat Sub Mat Total Allies . | . . . . Largest Group . | . . . . Highest-Rated Group . | . . . . Highest-Rated Ally . | . . . . Total Orders . | . . . . Ally Attacks . | . . . . Total Damage . | . . . . Kills . | . . . . Allies Corrupted . | . . . . Allies Melted . | . . . . Intel | -11 -10 -10 -8 ------- Run | Yrd Mat Sub Mat Robot Analysis Total . | . . . . Derelict Logs Recovered 1 | . . 1 . Drone Launches . | . . . . Drone Recoveries . | . . . . Exploration | -11 -10 -10 -8 ------------- Run | Yrd Mat Sub Mat Turns Passed 2095 | 73 721 271 1030 Spaces Moved 1425 | 44 518 277 586 Core 11 | 11 . . . Treads . | . . . . Legs . | . . . . Wheels 1414 | 33 518 277 586 Hover . | . . . . Flight . | . . . . Fastest Speed 50 | 50 90 95 86 Average Speed 97 | 80 95 95 100 Slowest Speed 130 | 90 110 95 130 Overloaded Moves . | . . . . Propulsion Burnouts . | . . . . Robots Hopped . | . . . . Cave-ins Triggered . | . . . . Exploration Rate (%) 47 | 5 91 27 65 Regions Visited 3 Branch Regions 1 Pre-discovered Areas . | . . . . Known Exits Taken 2 | . 1 1 . Unknown Exits Taken 1 | 1 . . . Scrap Searched . | . . . . Spaces Dug 14 | . 11 . 3 Terrain Destroyed 103 | . 65 . 38 Melee 3 | . . . 3 Projectile 2 | . . . 2 AOE 98 | . 65 . 33 Terrain Rammed . | . . . . Walls Destroyed . | . . . . Machines Disabled . | . . . . Actions | -11 -10 -10 -8 --------- Run | Yrd Mat Sub Mat Total 1808 | 71 645 282 810 Wait 68 | 3 30 . 35 Move 1422 | 43 517 276 586 Hop . | . . . . Pick Up 41 | 11 20 . 10 Fast Attach 16 | 2 2 1 11 Attach 13 | 5 3 . 5 Detach 1 | . . . 1 Swap 20 | . 7 2 11 Drop 30 | 2 9 2 17 Fire 148 | 5 57 1 85 Melee 49 | . . . 49 Ram . | . . . . Kick . | . . . . Crush . | . . . . Escape Stasis . | . . . . Rewire . | . . . . Trap . | . . . . Miscellaneous . | . . . . Route ------- -11/Scrapyard -10/Materials (discovered 5 exits: *Mat x2 / *Min x2 / *Sub) -10/Subcaves -8/Materials (discovered 1 exit: *Fac) History --------- Turn | Location | Event 18 | -11/Scrapyard | Discovered new exit (range 15) 74 | -11/Scrapyard | Entered Materials 310 | -10/Materials | Build established: Mutant 471 | -10/Materials | Discovered new exit (range 15) 489 | -10/Materials | Discovered new exit (range 14) 544 | -10/Materials | Identified exit to Materials 573 | -10/Materials | Identified exit to Mines 589 | -10/Materials | Discovered exit to Mines (range 8) 692 | -10/Materials | Discovered exit to Materials (range 11) 729 | -10/Materials | Discovered new exit (range 10) 738 | -10/Materials | Identified exit to Subcaves 781 | -10/Materials | Repaired Grenade Launcher 795 | -10/Materials | Entered Subcaves 924 | -10/Subcaves | Shifting Twisted Machinery released Sub. Power Source 925 | -10/Subcaves | Discovered new exit (range 8) 928 | -10/Subcaves | Shifting Twisted Machinery released Shrapnel Trap 936 | -10/Subcaves | Identified exit to Materials 987 | -10/Subcaves | Learned Materials garrison access intel 1066 | -10/Subcaves | Entered Materials 1066 | -8/Materials | Evolved 4 slots: Propulsion x1, Utility x3 1067 | -8/Materials | Loaded intel: 1 garrison access location 1494 | -8/Materials | Core integrity fell below 50% 1753 | -8/Materials | Core integrity fell below 20% 1894 | -8/Materials | Discovered new exit (range 7) 1901 | -8/Materials | Identified exit to Factory 2096 | -8/Materials | Destroyed by X-57 Shotgunner with High-powered Shotgun Last Messages --------------- 02041_ H-55 Commando unfolds itself. 02046_ S-10 Pest destroyed. 02046_ Slug penetrates Door. 02049_ Penetrated by Slug. 02055_ H-55 Commando suffers critical hit (Blast). 02055_ Destroyed Targeting Computer. 02055_ H-55 Commando knocked back. 02055_ Penetrated by Slug. 02057_ K-01 Serf collects debris. 02063_ Acquired 17 matter. 02064_ Slug penetrates Wall. 02066_ H-55 Commando destroyed. 02067_ K-01 Serf collects debris. 02073_ T-07 Excavator is excavating. 02075_ K-01 Serf collects debris. 02077_ T-07 Excavator is excavating. 02091_ >> Machine Analyzer network decryption results: 02091_ Terminal x1 Map ----- +----------------------------------------------------+ | ????????????????????????######## #!= | | ???????????????????????????????# +[ * | | ???????????????????????????????# #== | | ???????????????????????????????# ########## | | ???????????????????????????????# # [!! | | ???????????????????????????????# # [!! | | ????????????????????????######## + !!! | | ????????????????????????# ! # #% | | ????????????????????????# # ########## | | ????????????????????????# #=#????????? | | ????????????????????????# """ #!#????????? | | ????????????????????????# """=+ #######??# | | ????????????????????????# """ #=## """"""" | | ????????????????????????######## ## """"""" | | ??????????????????????????????# # """"""" | | ?????????????????????"""??????# + """"""" | | ?????????????????????"T"??????# # """"""" | | ??????????????????????????????# # | | ??????????????????????????????# # | | ??????????????????????????????# # | | ????????????????#######+####### ######### | | ????????????????# | | ????????????????# | | ????????????????# t | | ??????????####??# ######## ####### | | ?????????? ?# @a#??????# ####### | | ?????????? """ ?# #??????#!!!!!!# ## | | ??????????""""" # #??????#!!!!!!# ## | | ??????????""""" # #?############# ## | | ??????????""""" + # #??????# ## | | ????????? """ # # """ *#??????# ## | | ???????? # + """ #??????# ## | | ???????# ?# # """ #??????# ## | | ???????# ?# # """ #??????# = ## | | ???????#######??# #? #??????# *%[## | | ????????????????# x#################""## | | ????????????????# x [= | | ????????????????# %%= | | ??????????????# %* | | ??????????????# # ####################### | | ??????????????### #?????????????????????? | | ????????????????# #?????????????????????? | | ??????????????? #?????????????????????? | | ?????????????? #?????????????????????? | | ????????????? #?????????????????????? | | ???????????? ########?????????????????????? | | ??????????? ??????????????????????????????? | | ?????????? ???????????????????????????????? | | ??????????????????????????????????????????? | | ??????????????????????????????????????????? | +----------------------------------------------------+ Best States ------------- Heat Dissipation 50 Coolant Potential 50 Energy Generation 15 Energy Capacity 250 Matter Stores 300 Matter Capacity 300 Sight Range 16 Terrain Scan Density 10 Armor Coverage 225 Resistance: KI 20 Evasion (%) 50 Targeting Accuracy 12 Item Schematics ----------------- Hrd. Medium Armor Plating | -8/Materials | Scanalyzed Melee Analysis Suite | -8/Materials | Scanalyzed Imp. Targeting Computer | -8/Materials | Scanalyzed Missile Launcher | -8/Materials | Scanalyzed Adv. Heat Sink | -8/Materials | Scanalyzed Robot Schematics ------------------ None Fabricated ------------ Nothing Alien Tech Used ----------------- None Achievements -------------- None Challenges ------------ None Game ------ Seed ArmorEfficiencyBotcube Manual? 0 Play Time 00:48:58 Cumulative 261.8 hours Start 2024.09.29 @ 12:55:36 End 2024.09.29 @ 13:42:56 Sessions 1 Manual Loads 0 Difficulty Rogue Special Mode None Game No. 115 Rogue 112 Adventurer 3 Explorer 0 Win Type - Total 0 Types 0/0/0/0/0/0/0/0/0 Lore% 22 Gallery% 50 Achievement% 37 Wizard Run 0 Options --------- Layout 2 ASCII 0 Keyboard 0 Movement Mouse Keybinds 0 Fullscreen 2 Font 24/Smallcaps Map View 50x44 Zoom Use 0% Tactical HUD 1 Map Filters NONE Filters NONE Steam 1 RUN: cd7ee805-5686-4064-853d-34cba91371fd